Cogmind - Beta 13 @@@ ROGUE MODE // 2024.03.16 @ 18:44:08 Player: Jezoensis Result: Heading to fleet! Performance ------------- Evolutions (9) 4500 Regions Visited (30) 6000 Robots Destroyed (485) 2425 Value Destroyed (22533) 22533 Prototype IDs (67) 1340 Alien Tech Used (14) 2800 Bonus (33151) 33151 TOTAL SCORE: 72749 Bonus ------- Triggered High Security 500 Triggered Max Security 1000 High Alert Combat Kills 13392 Follower Combat Kills 2365 Network Hubs Disabled 800 Met Data Miner 300 Met Imprinter 300 Was Imprinted 300 Met Zhirov 300 Built Enhanced Grunts 300 A7 Reached Mainframe 300 Met R17 at Cetus 500 Used Core Reset Matrix 3000 Scanned by Researcher 500 Pursued by Intercept 500 Met Sigix 2000 Integrated Exoskeleton 5000 Win 3000 Friendly Fire -1206 Cogmind --------- Core Integrity 881/1600 Matter 103/300 Energy 974/980 System Corruption 5% Temperature Cool (0) Movement Walking (30) Location To Fleet Rendezvous Parts ------- > --- POWER (2) -------- Light Quantum Reactor Light Quantum Reactor > --- PROPULSION (5) --- Improved Heavy Siege Treads Sigix Exoskeleton > --- UTILITY (3) ------ Experimental Energy Well Enhanced Optical Array Advanced Targeting Computer > --- WEAPON (3) ------- Core Cannon Micro-nuke Launcher > --- INVENTORY (7) ---- 2N-1CE's Frost Array Improved Transmission Jammer Core Regenerator Spacefold Activator Enhanced Nova Cannon Improved Potential Cannon Peak State ------------ > --- POWER ------------ Light Quantum Reactor Light Quantum Reactor > --- PROPULSION ------- Improved Heavy Siege Treads Sigix Exoskeleton > --- UTILITY ---------- Experimental Energy Well Advanced Targeting Computer Spacefold Activator > --- WEAPON ----------- Core Cannon Micro-nuke Launcher > --- INVENTORY -------- Armored Medium Treads 2N-1CE's Frost Array Improved Transmission Jammer Core Regenerator Enhanced Nova Cannon Improved Potential Cannon [Rating: 264] Favorites ----------- Power Quantum Reactor Engine Angular Momentum Engine Power Core Fission Core Reactor Quantum Reactor Propulsion Compact Wheel Treads Centrium Heavy Treads Leg Improved Carbon-fiber Leg Wheel Compact Wheel Utility Huge Storage Unit Device Advanced Sensor Array Storage Huge Storage Unit Processor Advanced Terrain Scan Processor Hackware Hacking Suite Protection Centrium Medium Armor Plating Artifact Spacefold Activator Weapon Gauss Rifle Energy Gun Zionite Phaser-M Energy Cannon Phase Cannon Ballistic Gun Gauss Rifle Ballistic Cannon Compact Linear Accelerator Launcher Heavy Rocket Launcher Special Weapon Mining Laser Slashing Weapon Power Sword Build | -11 -10 -10 -9 -9 -8 -7 -7 -7 -7 -6 -6 -6 -6 -5 -5 -5 -5 -5 -4 -4 -4 -4 -4 -4 -3 -3 -2 -2 -2 -1 ------- Run | Yrd Mat Min Mat Min Mat Fac Low Low Dat Pro Fac Low Zio Pro Fac Upp Upp Zhi Pro Fac Ext Cet Arc Hub Res Qua Res Tes Sec Acc Slots Evolved 18 | . . . 2 . 2 2 . . . . 2 . . . 2 . . . . 2 . . . . 2 . 2 . . 2 Power 1 | . . . . . . . . . . . . . . . . . . . . . . . . . 1 . . . . . Propulsion 4 | . . . 1 . . . . . . . 1 . . . . . . . . . . . . . 1 . . . . 1 Utility 10 | . . . 1 . 2 1 . . . . 1 . . . 1 . . . . 2 . . . . . . 2 . . . Weapon 3 | . . . . . . 1 . . . . . . . . 1 . . . . . . . . . . . . . . 1 Parts Attached 845 | 8 17 3 37 4 36 35 17 10 1 12 92 2 5 11 69 12 7 7 24 34 34 15 8 33 10 70 36 39 135 22 Power 40 | 1 2 . 1 . 2 . 1 . . . 3 1 1 . 4 . . 2 1 2 . 1 . 2 1 1 2 . 9 3 Engine 14 | 1 2 . 1 . 1 . 1 . . . 2 1 . . 4 . . 1 . . . . . . . . . . . . Core 3 | . . . . . 1 . . . . . 1 . 1 . . . . . . . . . . . . . . . . . Reactor 23 | . . . . . . . . . . . . . . . . . . 1 1 2 . 1 . 2 1 1 2 . 9 3 Propulsion 85 | 3 9 1 7 1 5 3 3 . . 1 8 . 1 . 14 . 1 . 3 2 5 3 . 2 1 1 . 1 7 3 Treads 40 | . 4 . 3 1 2 . 2 . . . 3 . . . 5 . 1 . 1 . 1 2 . 2 1 1 . 1 7 3 Leg 6 | . . . . . . . . . . . 1 . 1 . 2 . . . . . 2 . . . . . . . . . Wheel 39 | 3 5 1 4 . 3 3 1 . . 1 4 . . . 7 . . . 2 2 2 1 . . . . . . . . Hover . | . . . . . . . . . . . . . . . . . . . . . . . . . . . . . . . Flight . | . . . . . . . . . . . . . . . . . . . . . . . . . . . . . . . Utility 491 | 2 3 1 18 3 18 18 10 9 . 10 50 1 3 10 31 8 5 4 15 19 18 5 6 22 6 53 27 27 83 6 Device 369 | 1 1 . 11 2 11 12 6 7 . 7 37 1 3 10 28 5 4 1 10 10 13 2 5 14 5 46 22 24 69 2 Storage 29 | 1 2 1 . . . . 1 . . 1 . . . . 3 . . . 1 2 . . . 2 . 2 1 3 7 2 Processor 28 | . . . 1 . 5 2 . . . . 4 . . . . . . 1 . 1 . . . 1 . 3 3 . 6 1 Hackware 1 | . . . . . 1 . . . . . . . . . . . . . . . . . . . . . . . . . Protection 61 | . . . 6 1 1 4 3 2 . 2 9 . . . . 3 1 2 4 6 5 3 1 5 1 1 1 . . . Artifact 3 | . . . . . . . . . . . . . . . . . . . . . . . . . . 1 . . 1 1 Weapon 229 | 2 3 1 11 . 11 14 3 1 1 1 31 . . 1 20 4 1 1 5 11 11 6 2 7 2 15 7 11 36 10 Energy Gun 25 | . . . 4 . 1 3 1 . 1 . 4 . . . 1 . . . . . 1 . . 2 1 2 . . 4 . Energy Cannon 57 | . . . . . . . . . . . 6 . . . 5 1 1 . 2 4 1 . . 1 . 3 3 4 17 9 Ballistic Gun 93 | 2 1 1 4 . 1 7 1 . . . 17 . . . 11 2 . 1 1 5 5 5 2 3 1 7 2 6 8 . Ballistic Cannon 11 | . . . 1 . 3 . . . . . . . . . . . . . . . 2 . . 1 . . . 1 3 . Launcher 32 | . 1 . . . 4 4 1 1 . 1 1 . . 1 3 1 . . 2 2 . . . . . 3 2 . 4 1 Special Weapon 10 | . 1 . 2 . 2 . . . . . 2 . . . . . . . . . 2 1 . . . . . . . . Impact Weapon . | . . . . . . . . . . . . . . . . . . . . . . . . . . . . . . . Slashing Weapon 1 | . . . . . . . . . . . 1 . . . . . . . . . . . . . . . . . . . Piercing Weapon . | . . . . . . . . . . . . . . . . . . . . . . . . . . . . . . . Special Melee Weapon . | . . . . . . . . . . . . . . . . . . . . . . . . . . . . . . . Unidentified Prototypes 40 | . . . . . 1 1 . . . . . . 1 . 2 . . 4 . 2 4 3 . 4 1 5 3 7 2 . Corrupted Parts 4 | . . . . . . . . . . . . . . . . . . . . . . 1 . 3 . . . . . . System Corruption 16 | . . . . . . . . . . . . . . . . . . . . . . 5 . 11 . . . . . . Parts Lost 45 | . . . 8 1 2 . . . . 2 6 . . . 11 . . . 4 5 3 . . . . 1 . . 2 . Power 3 | . . . 1 . . . . . . . . . . . 1 . . . 1 . . . . . . . . . . . Propulsion 21 | . . . 3 1 1 . . . . 1 2 . . . 4 . . . 3 2 2 . . . . . . . 2 . Utility 8 | . . . 1 . . . . . . . 2 . . . 3 . . . . . 1 . . . . 1 . . . . Weapon 13 | . . . 3 . 1 . . . . 1 2 . . . 3 . . . . 3 . . . . . . . . . . Highest Loss Streak 5 | . . . 5 1 2 . . . . 1 3 . . . 5 . . . 3 5 3 . . . . 1 . . 2 . To Critical Strikes . | . . . . . . . . . . . . . . . . . . . . . . . . . . . . . . . Average Slot Usage (%) 94 | . 100 100 98 99 99 99 100 100 100 99 99 100 99 100 96 100 100 96 99 96 99 97 93 90 85 88 89 90 83 69 Engine 3 | . 14 14 11 11 5 7 7 7 7 7 2 6 . . 2 5 5 5 3 . . . . . . . . . . . Reactor 3 | . . . . . . . . . . . . . . . . . . . 1 5 5 5 5 5 9 9 8 8 9 15 Treads 9 | . 1 . 11 21 10 7 7 7 7 7 10 6 6 6 9 11 11 11 8 5 3 5 5 8 9 12 13 13 11 10 Leg 1 | . . . . . . . . . . . 1 6 6 6 1 . . . . . 1 . . . . . . . 1 7 Wheel 9 | . 26 28 21 11 15 15 15 15 15 15 13 13 13 13 10 11 11 11 12 14 14 13 10 2 . . . . . . Device 17 | . 14 14 13 21 14 16 14 13 15 14 15 20 19 20 21 22 22 15 13 16 14 15 14 15 16 19 25 24 22 3 Storage 7 | . 14 14 11 11 9 7 7 7 7 7 6 6 6 6 5 5 5 5 5 5 5 5 5 6 4 7 7 8 8 6 Processor 17 | . . . 2 . 18 19 23 23 23 23 19 20 20 20 17 17 17 20 23 21 21 21 21 24 19 18 17 17 14 8 Protection 2 | . . . 5 . . 1 . 1 . . 4 . . . . . . . 3 6 10 9 10 5 6 1 . . . . Energy Gun 1 | . . . 8 11 3 5 . 5 6 5 . . . . . . . . . . . . . . 4 1 . . . . Energy Cannon 1 | . . . . . . . . . . . 2 . . . 2 3 2 5 1 3 1 . . . . . 3 2 3 8 Ballistic Gun 15 | . 27 28 11 11 4 15 18 15 15 15 16 20 20 17 17 17 20 17 19 17 15 20 21 19 14 15 11 14 7 . Naked Turns . | . . . . . . . . . . . . . . . . . . . . . . . . . . . . . . . Heaviest Build 180 | 15 50 52 62 55 60 65 105 117 107 106 114 108 109 112 124 148 127 126 137 133 167 143 143 148 160 170 174 178 180 68 Greatest Support 190 | 26 26 26 22 12 28 32 26 26 26 28 32 32 32 32 32 32 32 32 36 42 48 48 32 150 160 190 190 190 190 60 Greatest Overweight (x) 10 | . 1 2 2 4 4 2 4 4 4 3 4 3 3 3 10 4 3 3 5 7 5 4 4 4 . . . . 1 1 Average Overweight (x) 1 | . . 1 2 4 2 1 3 3 3 3 3 3 3 3 2 3 3 3 3 2 3 2 4 . . . . . . . Largest Inventory Capacity 27 | 8 20 20 20 20 20 20 25 25 25 25 25 25 25 25 25 25 25 25 25 25 25 25 25 25 25 25 25 25 27 7 Average Capacity 22 | 7 13 16 20 20 20 20 24 25 25 25 25 25 25 25 23 25 25 25 25 24 25 25 25 25 25 25 25 25 21 7 Most Carried 26 | 7 15 20 20 20 20 20 25 25 25 25 25 25 25 24 25 25 25 25 25 25 25 25 25 25 25 25 25 25 26 7 Average Carried 21 | 4 10 15 17 18 19 19 22 25 25 24 23 24 24 24 21 24 24 24 23 21 24 24 24 24 23 24 24 24 21 6 Final Capacity 25 | 8 15 20 20 20 20 20 25 25 25 25 25 25 25 25 25 25 25 25 25 25 25 25 25 25 25 25 25 25 7 7 Final Carried 25 | 7 15 20 20 18 19 20 25 25 25 23 24 25 24 24 25 25 25 25 23 24 25 25 24 24 25 25 24 25 6 7 Class Distribution -------------------- 62% | Scavenger-Skirmisher 6% | Messiah-Skirmisher 6% | Mutant 6% | Scavenger-Tank 5% | Alien-Skirmisher 3% | Alien-Sigix 3% | Skirmisher Dominant Class ---------------- Mutant | -10/Materials Mutant | -10/Mines Scavenger-Mutant | -9/Materials Scavenger-Mutant | -9/Mines Scavenger-Skirmisher | -8/Materials Scavenger-Skirmisher | -7/Factory Scavenger-Skirmisher | -7/Lower Caves Scavenger-Skirmisher | -7/Lower Caves Scavenger-Skirmisher | -7/Data Miner Scavenger-Skirmisher | -6/Proximity Caves Scavenger-Skirmisher | -6/Factory Scavenger-Skirmisher | -6/Lower Caves Scavenger-Skirmisher | -6/Zion Scavenger-Skirmisher | -5/Proximity Caves Scavenger-Skirmisher | -5/Factory Scavenger-Skirmisher | -5/Upper Caves Scavenger-Skirmisher | -5/Upper Caves Scavenger-Skirmisher | -5/Zhirov Scavenger-Skirmisher | -4/Proximity Caves Scavenger-Skirmisher | -4/Factory Scavenger-Skirmisher | -4/Extension Scavenger-Tank | -4/Cetus Scavenger-Tank | -4/Archives Scavenger-Skirmisher | -4/Hub_04(d) Messiah-Skirmisher | -3/Research Scavenger-Skirmisher | -3/Quarantine Scavenger-Skirmisher | -2/Research Scavenger-Skirmisher | -2/Testing Alien-Skirmisher | -2/Section 7 Alien-Sigix | -1/Access Resources | -11 -10 -10 -9 -9 -8 -7 -7 -7 -7 -6 -6 -6 -6 -5 -5 -5 -5 -5 -4 -4 -4 -4 -4 -4 -3 -3 -2 -2 -2 -1 ----------- Run | Yrd Mat Min Mat Min Mat Fac Low Low Dat Pro Fac Low Zio Pro Fac Upp Upp Zhi Pro Fac Ext Cet Arc Hub Res Qua Res Tes Sec Acc Matter Collected 19210 | 310 248 114 566 57 754 950 223 214 . 211 2060 . 94 172 1858 364 106 . 654 414 1179 345 174 408 406 1886 704 709 3853 177 Remotely 8292 | . . . 155 27 353 176 111 126 . 145 961 . . 76 898 46 . . 154 177 842 . . 28 . 1260 221 288 2248 . Salvage Created 26101 | 184 435 . 755 45 935 1036 172 107 . 295 1932 . . 98 1325 . 65 . 312 485 357 270 263 727 151 2966 495 1041 10474 1176 Parts 1186 | 14 42 . 47 6 65 61 5 5 . 13 101 . . 11 62 . 2 . 15 25 22 11 14 55 5 128 11 52 371 43 Haulers Intercepted 8 | . 1 . 1 . 3 2 . . . . . . . . . . . . . . . . . . . . . 1 . . Recyclers Shooed 19 | . 2 . . . 2 1 . . . . 5 . . . 1 . . . . 2 1 . . . 1 1 2 . 1 . Parts Field Recycled . | . . . . . . . . . . . . . . . . . . . . . . . . . . . . . . . Retrieved Matter . | . . . . . . . . . . . . . . . . . . . . . . . . . . . . . . . Parts Self-Destructed 64 | . . . . . . . 8 10 . 7 . . . 21 . . 2 . 16 . . . . . . . . . . . Prevented 12 | . . . . . . . 2 . . 6 . . . 3 . . . . 1 . . . . . . . . . . . Kills | -11 -10 -10 -9 -9 -8 -7 -7 -7 -7 -6 -6 -6 -6 -5 -5 -5 -5 -5 -4 -4 -4 -4 -4 -4 -3 -3 -2 -2 -2 -1 ------- Run | Yrd Mat Min Mat Min Mat Fac Low Low Dat Pro Fac Low Zio Pro Fac Upp Upp Zhi Pro Fac Ext Cet Arc Hub Res Qua Res Tes Sec Acc Combat Hostiles Destroyed 365 | . 10 . 14 3 21 8 4 2 . 5 23 . . 6 21 . 1 . 11 7 6 4 2 7 . 35 3 7 140 25 Melee 2 | . . . . . . . . . . . . . . . . . . . . . . . . . . . . . 2 . Guns 173 | . 8 . 13 3 1 6 2 1 . 2 20 . . 3 12 . 1 . 3 2 2 4 2 2 . 15 2 7 62 . Cannons 37 | . . . 1 . 5 . . . . . . . . . . . . . 1 . 4 . . . . . 1 . 19 6 AOE 134 | . 2 . . . 12 2 2 1 . 2 2 . . 3 9 . . . 7 5 . . . 5 . 15 . . 49 18 Classes Destroyed 28 | 2 6 . 2 . . 2 1 . . 2 2 . . 1 1 . . . . . 1 . . 1 . . 1 1 5 . Worker 28 | . 2 . 2 . . 1 . . . . 4 . . . 2 . . . . . 1 . . 7 . 5 . . 2 2 Builder 34 | . 2 . . . 4 1 . . . . 5 . . . 6 . . . . . 1 . . 1 . 4 . 2 7 1 Tunneler 9 | 5 . . . . . 1 . . . . 1 . . . 1 . . . . . . . . 1 . . . . . . Hauler 8 | . 1 . 1 . 3 2 . . . . . . . . . . . . . . . . . . . . . 1 . . Recycler 29 | 1 . . . . 2 5 . . . . 4 . . . 2 . . . . 2 . . . . 1 1 3 2 6 . Carrier 4 | . . . . . . . . . . . . . . . . . . . . . . . . . . . . . 1 3 Mechanic 11 | . . . 1 . . . . . . . 2 . . . 1 . . . . . . . . . . 1 . . 6 . Operator 4 | . . . . . . . . . . . 1 . . . 1 . . . . . . . 2 . . . . . . . Drone 3 | . . . . . . . . . . . . . . 1 . . . . 2 . . . . . . . . . . . Watcher 26 | . 3 . 2 . 2 3 . . . . 2 . . . 2 . . . . 1 . . . 2 1 3 . 1 4 . Swarmer 53 | . 6 . . 3 11 . . . . . 3 . . 5 . . . . 4 4 . 2 . 5 . . . . 5 5 Saboteur 11 | . . . . . . . . . . . . . . . . . . . . . . . . . . . . . 7 4 Grunt 154 | . 4 . 10 . 8 4 3 . . 3 13 . . . 13 . 1 . 2 3 1 . . . . 20 . 5 60 4 Brawler 16 | . . . . . . 1 . . . . . . . . 2 . . . . . . . . . . 1 . . 10 2 Duelist 15 | . . . . . . . . . . 1 . . . . 1 . . . 1 . . . . . . 1 . . 11 . Protector 6 | . . . . . . . . . . . . . . . 1 . . . . . . . . . . 1 . . 3 1 Researcher 1 | . . . . . . . . . . . . . . . . . . . . . . . . . . . . 1 . . Sentry 19 | . . . 4 . 2 1 . 1 . . . . . . 1 . . . . . 2 . 2 2 . . . . 4 . Specialist 4 | . . . . . . . . . . . . . . . . . . . . . . . . . . . 2 . 2 . Hunter 18 | . . . . . . . . . . 1 . . . . 1 . . . 2 . . . . . . 4 . . 10 . Programmer 38 | . . . . . . 2 . . . . 5 . . . 2 . . . . . 2 . . . . 5 . 2 15 5 Heavy 4 | . . . . . . . . . . . 2 . . . . . . . . . . . . . . . 1 . . 1 Behemoth 3 | . . . . . . . . . . . . . . . . . . . . . 1 . . . . . . . 2 . Cetus Guard 2 | . . . . . . . . . . . . . . . . . . . . . . 2 . . . . . . . . S7 Guard 1 | . . . . . . . . . . . . . . . . . . . . . . . . . . . . . 1 . Lightning 3 | . . . . . . . . . . . . . . . . . . . . . . . . . . 3 . . . . Tracker 2 | . . . . . . . . . . . . . . . . . . . . . . . . . . . . . . 2 Combat Programmer 1 | . . . . . . . . . . . . . . . . . . . . . . . . . . . . . . 1 Investigator 2 | . . . . . . . . . . . . . . . . . . . . . . . . . . . . . 2 . Striker 6 | . . . . . . . . . . . . . . . . . . . . . . . . . . . . . 6 . Executioner 2 | . . . . . . . . . . . . . . . . . . . . . . . . . . . . . 2 . Alpha 7 2 | . . . . . . . . . . . . . . . . . . . . . . . . . . . . . 2 . Z-Heavy 3 | . . . . . . . . . . . . . . . . . . . . . . . . 3 . . . . . . Thug 2 | . . . . . . . . 1 . . . . . . . . . . . . . 1 . . . . . . . . Mutant 1 | . . . . . . . 1 . . . . . . . . . . . . . . . . . . . . . . . Best Kill Streak 34 | 6 8 . 4 3 8 9 3 1 . 4 7 . . 3 13 . 1 . 5 4 4 2 4 8 1 23 3 7 34 9 Combat Bots Only 30 | . 6 . 4 3 7 4 3 1 . 4 6 . . 3 7 . 1 . 5 4 3 2 2 5 . 18 3 5 30 7 Max Kills in Single Turn 9 | 2 1 . 2 1 3 3 2 1 . 1 2 . . 3 3 . 1 . 2 3 2 2 1 9 1 6 1 3 7 8 Gunslinging 1 | . . . 1 . . 1 . . . . . . . . . . . . . . . 1 . . . . . 1 1 . Exploded 6 | . 1 . . . 3 1 2 1 . 1 1 . . 3 2 . . . 2 3 . . . 5 . 6 . . 5 5 Melee 1 | . . . . . . . . . . . . . . . . . . . . . . . . . . . . . 1 . Uniques/NPCs Destroyed . | . . . . . . . . . . . . . . . . . . . . . . . . . . . . . . . Combat | -11 -10 -10 -9 -9 -8 -7 -7 -7 -7 -6 -6 -6 -6 -5 -5 -5 -5 -5 -4 -4 -4 -4 -4 -4 -3 -3 -2 -2 -2 -1 -------- Run | Yrd Mat Min Mat Min Mat Fac Low Low Dat Pro Fac Low Zio Pro Fac Upp Upp Zhi Pro Fac Ext Cet Arc Hub Res Qua Res Tes Sec Acc Hostile Shots Fired 1908 | . 47 8 99 18 83 34 13 19 . 42 165 . . 9 111 . 1 . 96 33 51 16 . 69 . 185 49 26 566 168 Missed 534 | . 10 3 22 5 27 15 2 8 . 11 47 . . 5 34 . . . 35 14 14 4 . 16 . 32 16 3 152 59 Damage Taken 19101 | . 400 69 1001 101 772 197 212 41 . 478 2027 . . 70 1730 . 19 . 725 276 855 169 39 1383 . 1532 558 204 4625 1618 Core 2730 | . 48 13 171 6 157 30 19 . . 69 251 . . . 254 . . . 75 . . . . 91 . 61 94 14 814 563 Absorbed by Shields 4773 | . . . . . . 28 . 44 . 44 76 . . . 80 . . . 270 18 . 61 . . . 1039 178 211 2724 . Reduced by Siege Mode 766 | . . . . . . . . . . . . . . . . . . . . . . . . . . 179 51 2 534 . Redirected to Shielding 398 | . . . . . . . . . . . 81 . . . . . . . 31 21 140 27 . . . 98 . . . . Ignored by Resistances 8746 | . . . . . . . . . . . 262 . . 4 79 . . . 57 82 202 97 18 225 . 951 349 147 4240 2033 Core Remaining (%) 70 | 100 . 75 . 55 71 . . . . 83 . . . 70 . . . . 63 . . . . 92 . 95 . . 16 55 Volleys Fired 960 | 5 48 . 57 4 50 30 11 3 . 13 119 . . 5 66 7 8 . 26 32 23 11 7 17 20 83 24 19 233 39 Largest 4 | 2 2 . 2 2 2 3 3 3 . 3 3 . . 3 4 1 4 . 4 4 4 4 4 4 4 4 4 4 4 1 Hottest 370 | 40 100 . 100 79 100 119 84 136 . 136 229 . . 84 176 85 124 . 176 176 194 134 134 212 176 176 370 235 330 300 Shots Fired 2132 | 10 94 . 112 8 88 74 21 7 . 27 283 . . 13 175 7 11 . 65 68 78 41 28 56 33 242 50 55 447 39 Gun 1659 | 10 87 . 106 8 35 68 17 6 . 21 237 . . 12 146 . 4 . 52 48 44 40 28 47 33 225 34 49 302 . Cannon 348 | . . . 4 . 32 . . . . . 38 . . . 17 7 7 . 5 16 33 . . 9 . 5 16 6 122 31 Launcher 113 | . 5 . . . 17 6 4 1 . 6 6 . . 1 12 . . . 8 4 . . . . . 12 . . 23 8 Special 12 | . 2 . 2 . 4 . . . . . 2 . . . . . . . . . 1 1 . . . . . . . . Kinetic 1555 | 10 87 . 65 4 54 53 17 4 . 14 215 . . 12 144 . 4 . 52 48 74 40 28 50 14 193 34 49 290 . Thermal 358 | . 2 . 43 4 17 15 . 2 . 7 60 . . . 19 7 7 . 5 16 3 . . 6 . 5 16 6 87 31 Explosive 56 | . . . . . 6 3 4 1 . . 6 . . 1 12 . . . 8 4 . . . . . 3 . . . 8 Electromagnetic 61 | . 5 . 4 . 11 3 . . . 6 . . . . . . . . . . . . . . . 9 . . 23 . Slashing 47 | . . . . . . . . . . . . . . . . . . . . . . . . . . . . . 47 . Phasic 51 | . . . . . . . . . . . . . . . . . . . . . . . . . 19 32 . . . . Robot Hit Streak 47 | 2 13 . 13 2 6 7 14 15 . 7 23 . . 3 13 . 4 . 9 11 7 14 13 14 9 28 29 47 30 7 Robot Miss Streak 6 | 3 4 . 3 2 6 3 2 3 . 2 3 . . 1 3 . 1 . 3 2 2 2 1 2 1 5 1 4 4 2 Penetration Max 3 | . . . . . . 1 . . . . 1 . . . 1 . . . . . 1 1 . 1 . 1 1 2 3 . Secondary Targets 39 | . . . 4 1 . 1 . . . 1 6 . . 1 2 . . . 1 1 . 2 1 1 . 7 . 3 7 . Max Gunslinging Chain 2 | . . . 1 1 . 1 . . . 1 1 . . 1 1 . . . 1 1 . 1 1 1 . 1 . 2 2 . Shots Hit Robots 1361 | 5 55 . 79 4 55 42 15 4 . 19 191 . . 6 101 . 3 . 38 37 43 35 18 30 10 171 33 22 326 19 Core Hits 1197 | 6 27 . 35 3 58 29 10 4 . 14 97 . . 10 92 . 2 . 22 23 18 17 8 51 4 156 13 26 427 45 Critical Kills 83 | . . . . . . . . . . . 4 . . . 4 . . . 1 . . . 1 . . 3 3 11 55 1 Critical Parts Destroyed 133 | . . . . . . . . . . . 2 . . . 1 . . . . 4 . . . . . 8 1 9 106 2 Critical Strikes 241 | . . . 1 . 1 . . . . . 8 . . . 5 . . . 1 4 . . 1 . . 11 4 20 181 4 Burn 3 | . . . 1 . . . . . . . 2 . . . . . . . . . . . . . . . . . . . Meltdown 1 | . . . . . . . . . . . . . . . . . . . . . . . . . . . . . 1 . Destroy 234 | . . . . . . . . . . . 6 . . . 5 . . . 1 4 . . 1 . . 11 4 20 178 4 Blast 3 | . . . . . 1 . . . . . . . . . . . . . . . . . . . . . . . 2 . Melee Attacks 1 | . . . . . . . . . . . 1 . . . . . . . . . . . . . . . . . . . Impact . | . . . . . . . . . . . . . . . . . . . . . . . . . . . . . . . Slashing 1 | . . . . . . . . . . . 1 . . . . . . . . . . . . . . . . . . . Piercing . | . . . . . . . . . . . . . . . . . . . . . . . . . . . . . . . Sneak Attacks . | . . . . . . . . . . . . . . . . . . . . . . . . . . . . . . . Combat Hostiles . | . . . . . . . . . . . . . . . . . . . . . . . . . . . . . . . Follow-up Attacks . | . . . . . . . . . . . . . . . . . . . . . . . . . . . . . . . Damage Inflicted 84617 | 96 929 . 1216 100 2145 1209 554 130 . 525 5321 . . 419 4932 . 69 . 1623 1210 1864 904 453 2623 300 8318 2259 727 36333 10358 Guns 28283 | 96 696 . 1146 100 388 793 263 67 . 310 4052 . . 174 2229 . 69 . 619 740 763 904 453 911 300 4890 732 645 6943 . Cannons 18187 | . . . 70 . 485 . . . . . 331 . . . 125 . . . 31 . 1101 . . . . . 1527 . 9954 4563 Explosions 37848 | . 233 . . . 1272 416 291 63 . 215 938 . . 245 2578 . . . 973 470 . . . 1704 . 3392 . . 19296 5762 Melee . | . . . . . . . . . . . . . . . . . . . . . . . . . . . . . . . Ramming 299 | . . . . . . . . . . . . . . . . . . . . . . . . 8 . 36 . 82 140 33 Kinetic 25803 | 96 696 . 741 70 706 595 263 34 . 135 3707 . . 174 2204 . 69 . 619 740 1806 904 453 911 186 4279 732 645 5038 . Thermal 36790 | . 36 . 430 30 195 233 . 33 . 175 676 . . . 216 . . . 31 . 58 . . 141 . . 1527 . 24758 8251 Explosive 9913 | . . . . . 553 207 291 63 . . 938 . . 245 2512 . . . 973 470 . . . . . 1550 . . 37 2074 Electromagnetic 8297 | . 197 . 45 . 691 174 . . . 215 . . . . . . . . . . . . . 1563 . 1842 . . 3570 . Impact . | . . . . . . . . . . . . . . . . . . . . . . . . . . . . . . . Slashing 2790 | . . . . . . . . . . . . . . . . . . . . . . . . . . . . . 2790 . Piercing . | . . . . . . . . . . . . . . . . . . . . . . . . . . . . . . . Phasic 725 | . . . . . . . . . . . . . . . . . . . . . . . . . 114 611 . . . . Highest Corruption 17 | . . . . . 1 1 . . . . 2 . . . 8 . . . . 2 . 5 5 14 . 17 . 1 5 5 Average Corruption 3 | . . . . . 1 1 . . . . 1 . . . 5 . . . . 1 . 5 3 4 . 8 . 1 2 3 Corruption Purged 20 | . . . . . . 1 . . . . 4 . . . 8 . . . . 2 . . 5 . . . . . . . Corruption Blocked 15 | . . . . . . . . . . . . . . . . . . . . . . . . 15 . . . . . . Effects 88 | . . . . . 1 1 . . . . 2 . . . 16 . . . . . . 3 4 1 . 13 . 1 39 7 Message Errors 20 | . . . . . . . . . . . 1 . . . 3 . . . . . . . 1 . . 6 . . 7 2 Matter Fused 20 | . . . . . . . . . . . . . . . 2 . . . . . . . 3 . . 1 . 1 10 3 Heat Flow Errors 9 | . . . . . . . . . . . . . . . 1 . . . . . . . . . . . . . 7 1 Energy Discharges 12 | . . . . . . . . . . . 1 . . . 4 . . . . . . . . . . 1 . . 6 . Data Loss (minor) 10 | . . . . . . 1 . . . . . . . . 3 . . . . . . . . . . 1 . . 4 1 Data Loss (major) 7 | . . . . . 1 . . . . . . . . . 2 . . . . . . 3 . . . 1 . . . . Misfires 1 | . . . . . . . . . . . . . . . . . . . . . . . . . . . . . 1 . Alerts 3 | . . . . . . . . . . . . . . . 1 . . . . . . . . 1 . . . . 1 . Weapon Failures 6 | . . . . . . . . . . . . . . . . . . . . . . . . . . 3 . . 3 . Overload Shots . | . . . . . . . . . . . . . . . . . . . . . . . . . . . . . . . Overflow Damage 5453 | . 8 . . . 43 . . . . 16 58 . . 21 95 . . . 38 . 18 . . 47 . . 168 28 2965 1948 Projectiles 3237 | . . . . . . . . . . . . . . . 14 . . . . . 18 . . . . . 168 . 1618 1419 Explosions 2141 | . 8 . . . 43 . . . . 16 58 . . 21 81 . . . 38 . . . . 47 . . . . 1300 529 Melee 75 | . . . . . . . . . . . . . . . . . . . . . . . . . . . . 28 47 . Knockbacks 25 | . . . 1 . 8 . . . . . . . . . . . . . . . 5 . . . . . . 1 9 1 Impact 2 | . . . . . . . . . . . . . . . . . . . . . . . . . . . . 1 . 1 Kinetic 23 | . . . 1 . 8 . . . . . . . . . . . . . . . 5 . . . . . . . 9 . Secondary . | . . . . . . . . . . . . . . . . . . . . . . . . . . . . . . . Self-Inflicted Damage 1036 | . . . . . 73 . . . . . . . . . 264 . . . . . . . . 143 . 100 . . 411 45 Shots 42 | . . . . . 5 . . . . . . . . . 4 . . . . . . . . 2 . 4 . . 25 2 Rammed 11 | . . . . . . . . . . . . . . . . . . . . . . . . 1 . 3 . 4 3 . Targets Rammed 16 | . . . . . . . . . . . . . . . . . . . . . . . . 1 . 3 . 4 5 3 Kicked 5 | . . . . . . . . . . . . . . . . . . . . . . . . . . . . . 2 3 Crushed . | . . . . . . . . . . . . . . . . . . . . . . . . . . . . . . . Highest Temperature 535 | . 54 . 81 84 75 69 29 108 . 250 388 . . 26 165 80 40 . 33 13 535 . . 132 288 55 361 . 106 103 Average Temperature 62 | . 17 . 19 44 19 19 8 60 . 128 66 . . 18 44 33 17 . 22 7 177 . . 33 71 26 183 . 71 34 Received Heat Transfer 4173 | . 162 39 504 . 297 63 27 13 . 138 780 . . 18 322 . 9 . 21 103 480 35 . 138 . 241 . 32 562 189 Effects 8 | . . . . . . . . . . . . . . . . . . . . . 3 . . . 3 . 2 . . . Shutdowns 2 | . . . . . . . . . . . . . . . . . . . . . 1 . . . . . 1 . . . Interference 5 | . . . . . . . . . . . . . . . . . . . . . 1 . . . 3 . 1 . . . Damage (minor) 1 | . . . . . . . . . . . . . . . . . . . . . 1 . . . . . . . . . Siege Activations 32 | . . . . . . . . . . . . . . . . . . . . . . . . 3 . 7 2 4 16 . Total Turns 599 | . . . . . . . . . . . . . . . . . . . . . . . . 14 . 159 26 30 370 . Longest Duration 77 | . . . . . . . . . . . . . . . . . . . . . . . . 7 . 36 17 8 77 . Robots Corrupted 19 | . . . . . 3 . . . . 1 . . . . . . . . . . . . . 2 . 6 . . 7 . Combat Hostiles 16 | . . . . . 3 . . . . 1 . . . . . . . . . . . . . . . 5 . . 7 . Parts Fried 35 | . 1 . . . 3 . . . . . . . . . . . . . . . . 1 . 9 . 5 . . 16 . Impact Corruptions 2 | . . . . . . . . . . . . . . . . . . . . . . . . . . . . 1 1 . Robots Melted 3 | . . . . . . . . . . . 1 . . . . . . . . . . . . . . . . . 1 1 Combat Hostiles 3 | . . . . . . . . . . . 1 . . . . . . . . . . . . . . . . . 1 1 Parts Melted 20 | . . . 3 . . 2 . . . . 3 . . . . . . . . . . . . . . . . . 11 1 Heat Transferred 23029 | . 100 . 1147 74 420 457 . 75 . 400 1416 . . . 217 . . . 37 . 74 . . 50 . . 111 . 14841 3610 Parts Sabotaged 10 | . . . . . . . . . . . . . . . 3 . . . . . . . . 2 . 4 . . 1 . Parts Stolen . | . . . . . . . . . . . . . . . . . . . . . . . . . . . . . . . Parts Stripped . | . . . . . . . . . . . . . . . . . . . . . . . . . . . . . . . Power Chain Reactions 18 | . 2 . . . 1 3 . . . . . . . . . . . . . . . . . 4 . . . . 8 . Alert | -11 -10 -10 -9 -9 -8 -7 -7 -7 -7 -6 -6 -6 -6 -5 -5 -5 -5 -5 -4 -4 -4 -4 -4 -4 -3 -3 -2 -2 -2 -1 ------- Run | Yrd Mat Min Mat Min Mat Fac Low Low Dat Pro Fac Low Zio Pro Fac Upp Upp Zhi Pro Fac Ext Cet Arc Hub Res Qua Res Tes Sec Acc Peak Influence 5686 | 30 398 121 495 196 429 477 . . . . 417 . . . 1095 . . . . 296 470 924 495 2362 1223 1499 944 640 4719 5686 Initial 2831 | . 19 111 46 136 76 185 . . . . 44 . . . 228 . . . . . 119 263 369 172 1168 578 790 423 360 2831 Average 815 | 7 205 118 284 193 175 302 . . . . 176 . . . 831 . . . . 193 158 547 468 580 1165 1072 805 507 2000 3979 Maximum Alert Level 5 | . 1 . 2 . 2 2 . . . . 2 . . . 3 . . . . 1 2 3 2 5 4 4 3 2 5 5 Low Security (%) 22 | 100 56 100 32 100 65 9 . . . . 45 . . . . . . . . 27 81 . . 7 . . . . . . Level 1 23 | . 43 . 43 . 23 78 . . . . 52 . . . 18 . . . . 72 4 11 15 27 . . . 15 4 . Level 2 17 | . . . 23 . 10 11 . . . . 2 . . . 7 . . . . . 14 60 84 41 . 28 . 84 13 . Level 3 12 | . . . . . . . . . . . . . . . 73 . . . . . . 28 . 14 12 8 100 . 12 . Level 4 11 | . . . . . . . . . . . . . . . . . . . . . . . . . 87 62 . . 15 . Level 5 2 | . . . . . . . . . . . . . . . . . . . . . . . . 8 . . . . 8 10 High Security 6 | . . . . . . . . . . . . . . . . . . . . . . . . . . . . . 44 . Max Security 3 | . . . . . . . . . . . . . . . . . . . . . . . . . . . . . . 89 Sterilizations 1 | . . . . . . . . . . . . . . . . . . . . . . . . . . . . . 1 . Squads Dispatched 114 | . 2 1 2 . 5 2 . . . . 9 . . . 6 . . . . 3 1 . . 11 2 7 1 2 32 28 Investigation 14 | . 2 1 1 . 4 . . . . . 2 . . . . . . . . 1 . . . 1 . 1 . . . 1 Extermination 12 | . . . . . . 1 . . . . 3 . . . 1 . . . . 1 . . . 1 . 2 . 1 2 . Reinforcement 26 | . . . 1 . 1 1 . . . . 4 . . . 1 . . . . 1 1 . . 4 1 . 1 1 5 4 Assault 55 | . . . . . . . . . . . . . . . 3 . . . . . . . . 2 1 4 . . 25 20 Garrison 4 | . . . . . . . . . . . . . . . 1 . . . . . . . . 3 . . . . . . Intercept 3 | . . . . . . . . . . . . . . . . . . . . . . . . . . . . . . 3 Searches Triggered . | . . . . . . . . . . . . . . . . . . . . . . . . . . . . . . . Construction Impeded 6 | . . . . . 1 1 . . . . 1 . . . 1 . . . . . 1 . . 1 . . . . . . Haulers Reinforced 4 | . . . . . . . . . . . 1 . . . . . . . . . . . . 1 . . . . 2 . Active Scanning Responses . | . . . . . . . . . . . . . . . . . . . . . . . . . . . . . . . Cargo Convoy Interrupts . | . . . . . . . . . . . . . . . . . . . . . . . . . . . . . . . Stealth | -11 -10 -10 -9 -9 -8 -7 -7 -7 -7 -6 -6 -6 -6 -5 -5 -5 -5 -5 -4 -4 -4 -4 -4 -4 -3 -3 -2 -2 -2 -1 --------- Run | Yrd Mat Min Mat Min Mat Fac Low Low Dat Pro Fac Low Zio Pro Fac Upp Upp Zhi Pro Fac Ext Cet Arc Hub Res Qua Res Tes Sec Acc Distress Signals 16 | . . . 1 . 1 3 . . . . 1 . . . 1 . . . . . 2 2 . 2 . 1 . . 2 . Communications Jammed 297 | . . . . . . . . . . . 4 . . . 89 . . . . . 32 . . 37 2 51 10 2 54 16 Distress Signals 282 | . . . . . . . . . . . 1 . . . 88 . . . . . 32 . . 37 2 51 . 1 54 16 Times Spotted 679 | . 17 4 24 4 22 12 4 2 . 6 40 . . 9 41 . 1 . 10 8 20 11 6 39 2 56 2 11 218 110 Peak Tracking Total 34 | . 4 2 8 4 6 4 3 1 . 4 8 . . 4 9 . 1 . 4 3 4 5 2 16 2 18 2 3 24 34 Tactical Retreats 55 | . 2 . 3 . . . . . . . 3 . . . 2 . . . . . 2 . . 3 . 4 . 1 19 16 Traps | -11 -10 -10 -9 -9 -8 -7 -7 -7 -7 -6 -6 -6 -6 -5 -5 -5 -5 -5 -4 -4 -4 -4 -4 -4 -3 -3 -2 -2 -2 -1 ------- Run | Yrd Mat Min Mat Min Mat Fac Low Low Dat Pro Fac Low Zio Pro Fac Upp Upp Zhi Pro Fac Ext Cet Arc Hub Res Qua Res Tes Sec Acc Traps Triggered 11 | . . . 1 . 1 . . . . . 1 . . . 2 . . . . 1 1 . . . . . 1 . . 3 Indirectly . | . . . . . . . . . . . . . . . . . . . . . . . . . . . . . . . Trap Hack Attempts . | . . . . . . . . . . . . . . . . . . . . . . . . . . . . . . . Triggered . | . . . . . . . . . . . . . . . . . . . . . . . . . . . . . . . Disarmed . | . . . . . . . . . . . . . . . . . . . . . . . . . . . . . . . Reprogrammed . | . . . . . . . . . . . . . . . . . . . . . . . . . . . . . . . Reused . | . . . . . . . . . . . . . . . . . . . . . . . . . . . . . . . Traps Extracted . | . . . . . . . . . . . . . . . . . . . . . . . . . . . . . . . Installed . | . . . . . . . . . . . . . . . . . . . . . . . . . . . . . . . Triggered 4 | . . 1 . . . . 1 . . . . . . . . . . . 2 . . . . . . . . . . . Machines | -11 -10 -10 -9 -9 -8 -7 -7 -7 -7 -6 -6 -6 -6 -5 -5 -5 -5 -5 -4 -4 -4 -4 -4 -4 -3 -3 -2 -2 -2 -1 ---------- Run | Yrd Mat Min Mat Min Mat Fac Low Low Dat Pro Fac Low Zio Pro Fac Upp Upp Zhi Pro Fac Ext Cet Arc Hub Res Qua Res Tes Sec Acc Machines Disabled 96 | . . . . . 2 2 1 . . . 3 . . . 6 1 . . . 4 1 2 2 27 . 9 . 5 21 10 Max in Single Turn 11 | . . . . . 1 2 1 . . . 1 . . . 1 1 . . . 2 1 . 1 11 . 2 . 1 2 2 Garrison Access 6 | . . . . . . . . . . . . . . . 1 . . . . 1 . . . . . 1 . 1 1 1 Network Hub 4 | . . . . . . . . . . . . . . . . . . . . . . . . 4 . . . . . . Energy Cycler 1 | . . . . . . . . . . . . . . . . . . . . . . . . . . . . . . 1 Machines Repaired . | . . . . . . . . . . . . . . . . . . . . . . . . . . . . . . . Machines Dismantled . | . . . . . . . . . . . . . . . . . . . . . . . . . . . . . . . Machines Sabotaged . | . . . . . . . . . . . . . . . . . . . . . . . . . . . . . . . Overloaded Fab Kills . | . . . . . . . . . . . . . . . . . . . . . . . . . . . . . . . Hacking | -11 -10 -10 -9 -9 -8 -7 -7 -7 -7 -6 -6 -6 -6 -5 -5 -5 -5 -5 -4 -4 -4 -4 -4 -4 -3 -3 -2 -2 -2 -1 --------- Run | Yrd Mat Min Mat Min Mat Fac Low Low Dat Pro Fac Low Zio Pro Fac Upp Upp Zhi Pro Fac Ext Cet Arc Hub Res Qua Res Tes Sec Acc Machines Accessed 48 | . 7 1 3 . 6 5 . . 3 . 7 . . . . 1 . 4 . 1 . 1 . . . 4 . 2 2 1 Terminals 26 | . 5 . 3 . 5 5 . . . . 5 . . . . . . . . . . 1 . . . 2 . . . . Fabricators . | . . . . . . . . . . . . . . . . . . . . . . . . . . . . . . . Repair Stations . | . . . . . . . . . . . . . . . . . . . . . . . . . . . . . . . Recycling Units 4 | . 2 . . . 1 . . . . . 1 . . . . . . . . . . . . . . . . . . . Scanalyzers 3 | . . . . . . . . . . . . . . . . . . . . . . . . . . 1 . 1 1 . Garrison Access 6 | . . . . . . . . . . . 1 . . . . . . . . 1 . . . . . 1 . 1 1 1 Total Hacks 139 | . 18 1 11 . 17 10 . . 26 . 16 . . . . 1 . 17 . 1 . 1 . . . 7 . 3 5 5 Successful 83 | . 8 1 7 . 4 4 . . 26 . 5 . . . . 1 . 17 . 1 . . . . . 4 . 2 2 1 Failed 55 | . 9 . 4 . 13 6 . . . . 11 . . . . . . . . . . 1 . . . 3 . 1 3 4 Catastrophic 10 | . . . . . 2 2 . . . . 3 . . . . . . . . . . 1 . . . 1 . 1 . . Database Lockouts 1 | . 1 . . . . . . . . . . . . . . . . . . . . . . . . . . . . . Manual 169 | . 17 . 11 . 10 8 . . . . 12 . . . 11 1 . . . 10 9 1 . 17 12 18 9 6 15 2 Terminals 69 | . 16 . 11 . 16 10 . . . . 13 . . . . . . . . . . 1 . . . 2 . . . . Fabricators . | . . . . . . . . . . . . . . . . . . . . . . . . . . . . . . . Repair Stations . | . . . . . . . . . . . . . . . . . . . . . . . . . . . . . . . Recycling Units 5 | . 2 . . . 1 . . . . . 2 . . . . . . . . . . . . . . . . . . . Scanalyzers 7 | . . . . . . . . . . . . . . . . . . . . . . . . . . 3 . 1 3 . Garrison Access 13 | . . . . . . . . . . . 1 . . . . . . . . 1 . . . . . 2 . 2 2 5 Terminal Hacks 59 | . 3 1 3 . 1 2 . . 26 . 3 . . . . 1 . 17 . . . . . . . 2 . . . . Record 12 | . . . . . . . . . 6 . . . . . . . . 5 . . . . . . . 1 . . . . Part Schematic 15 | . . . . . . . . . 11 . . . . . . . . 4 . . . . . . . . . . . . Robot Schematic 6 | . . . . . . . . . 6 . . . . . . . . . . . . . . . . . . . . . Robot Analysis 8 | . 2 . 2 . . . . . . . . . . . . . . 4 . . . . . . . . . . . . Prototype ID Bank 7 | . . . . . . . . . 3 . . . . . . . . 4 . . . . . . . . . . . . Open Door 3 | . . 1 . . . . . . . . . . . . . 1 . . . . . . . . . 1 . . . . Branch Access Points 3 | . . . 1 . . 1 . . . . 1 . . . . . . . . . . . . . . . . . . . Unreport Threat 2 | . . . . . 1 . . . . . 1 . . . . . . . . . . . . . . . . . . . Locate Traps 2 | . 1 . . . . 1 . . . . . . . . . . . . . . . . . . . . . . . . Recall Extermination 1 | . . . . . . . . . . . 1 . . . . . . . . . . . . . . . . . . . Fabricator Hacks . | . . . . . . . . . . . . . . . . . . . . . . . . . . . . . . . Repair Station Hacks . | . . . . . . . . . . . . . . . . . . . . . . . . . . . . . . . Recycling Unit Hacks . | . . . . . . . . . . . . . . . . . . . . . . . . . . . . . . . Scanalyzer . | . . . . . . . . . . . . . . . . . . . . . . . . . . . . . . . Garrison Access Hacks 3 | . . . . . . . . . . . . . . . . . . . . . . . . . . 1 . 1 1 . Seal Access 3 | . . . . . . . . . . . . . . . . . . . . . . . . . . 1 . 1 1 . Unauthorized Hacks 21 | . 5 . 4 . 3 2 . . . . 2 . . . . . . . . 1 . . . . . 1 . 1 1 1 Terminals 13 | . 3 . 4 . 2 2 . . . . 2 . . . . . . . . . . . . . . . . . . . Track 3 | . 1 . 1 . 1 . . . . . . . . . . . . . . . . . . . . . . . . . Assimilate 1 | . . . . . . 1 . . . . . . . . . . . . . . . . . . . . . . . . Botnet 7 | . 1 . 2 . 1 1 . . . . 2 . . . . . . . . . . . . . . . . . . . Operators 2 | . 1 . 1 . . . . . . . . . . . . . . . . . . . . . . . . . . . Fabricators . | . . . . . . . . . . . . . . . . . . . . . . . . . . . . . . . Repair Stations . | . . . . . . . . . . . . . . . . . . . . . . . . . . . . . . . Recycling Units 3 | . 2 . . . 1 . . . . . . . . . . . . . . . . . . . . . . . . . Tunnel 3 | . 2 . . . 1 . . . . . . . . . . . . . . . . . . . . . . . . . Scanalyzers 3 | . . . . . . . . . . . . . . . . . . . . . . . . . . 1 . 1 1 . Researchers 3 | . . . . . . . . . . . . . . . . . . . . . . . . . . 1 . 1 1 . Garrison Access 2 | . . . . . . . . . . . . . . . . . . . . 1 . . . . . . . . . 1 Jam 2 | . . . . . . . . . . . . . . . . . . . . 1 . . . . . . . . . 1 Data Cores Recovered 2 | . . . . . . . . . . . 1 . . . 1 . . . . . . . . . . . . . . . Used . | . . . . . . . . . . . . . . . . . . . . . . . . . . . . . . . Hacking Detections 28 | . 5 . 3 . 5 5 . . . . 7 . . . . . . . . . . . . . . 1 . . 1 1 Full Trace Events 5 | . . . 1 . 2 . . . . . 2 . . . . . . . . . . . . . . . . . . . Feedback Events 1 | . . . . . . . . . . . 1 . . . . . . . . . . . . . . . . . . . Corruption 1 | . . . . . . . . . . . 1 . . . . . . . . . . . . . . . . . . . Feedback Blocked . | . . . . . . . . . . . . . . . . . . . . . . . . . . . . . . . Robot Schematics Acquired 8 | . . . . . . . . . 6 . . . . . . . . . . . . . . . . . . 2 . . Robots Built . | . . . . . . . . . . . . . . . . . . . . . . . . . . . . . . . Authchips . | . . . . . . . . . . . . . . . . . . . . . . . . . . . . . . . Time . | . . . . . . . . . . . . . . . . . . . . . . . . . . . . . . . Total Robot Build Rating . | . . . . . . . . . . . . . . . . . . . . . . . . . . . . . . . Part Schematics Acquired 30 | . . . . . . . . . 11 . . . . . . . . 4 . . . . . . . . . 3 12 . Parts Built . | . . . . . . . . . . . . . . . . . . . . . . . . . . . . . . . Authchips . | . . . . . . . . . . . . . . . . . . . . . . . . . . . . . . . Time . | . . . . . . . . . . . . . . . . . . . . . . . . . . . . . . . Total Part Build Rating . | . . . . . . . . . . . . . . . . . . . . . . . . . . . . . . . Parts Repaired . | . . . . . . . . . . . . . . . . . . . . . . . . . . . . . . . Time . | . . . . . . . . . . . . . . . . . . . . . . . . . . . . . . . Parts Recycled . | . . . . . . . . . . . . . . . . . . . . . . . . . . . . . . . Recycled Matter . | . . . . . . . . . . . . . . . . . . . . . . . . . . . . . . . Retrieved Matter . | . . . . . . . . . . . . . . . . . . . . . . . . . . . . . . . Retrieved Components . | . . . . . . . . . . . . . . . . . . . . . . . . . . . . . . . Parts Scanalyzed . | . . . . . . . . . . . . . . . . . . . . . . . . . . . . . . . Part Schematics Acquired . | . . . . . . . . . . . . . . . . . . . . . . . . . . . . . . . Parts Damaged . | . . . . . . . . . . . . . . . . . . . . . . . . . . . . . . . Bothacking | -11 -10 -10 -9 -9 -8 -7 -7 -7 -7 -6 -6 -6 -6 -5 -5 -5 -5 -5 -4 -4 -4 -4 -4 -4 -3 -3 -2 -2 -2 -1 ------------ Run | Yrd Mat Min Mat Min Mat Fac Low Low Dat Pro Fac Low Zio Pro Fac Upp Upp Zhi Pro Fac Ext Cet Arc Hub Res Qua Res Tes Sec Acc Used RIF Installer . | . . . . . . . . . . . . . . . . . . . . . . . . . . . . . . . Robots Hacked . | . . . . . . . . . . . . . . . . . . . . . . . . . . . . . . . Non-combat . | . . . . . . . . . . . . . . . . . . . . . . . . . . . . . . . Combat . | . . . . . . . . . . . . . . . . . . . . . . . . . . . . . . . Robot Hacks Applied . | . . . . . . . . . . . . . . . . . . . . . . . . . . . . . . . Relay Couplers Released 4 | . . . . . . . . . . . 3 . . . 1 . . . . . . . . . . . . . . . Machine Destruction 1 | . . . . . . . . . . . . . . . 1 . . . . . . . . . . . . . . . Programmers 3 | . . . . . . . . . . . 3 . . . . . . . . . . . . . . . . . . . Fabnet Peak Effective % . | . . . . . . . . . . . . . . . . . . . . . . . . . . . . . . . Robots Rewired 3 | . . . . . . . . . . . . . . . . . . . . . 3 . . . . . . . . . Allies Hacked . | . . . . . . . . . . . . . . . . . . . . . . . . . . . . . . . Hacks Repelled . | . . . . . . . . . . . . . . . . . . . . . . . . . . . . . . . Allies | -11 -10 -10 -9 -9 -8 -7 -7 -7 -7 -6 -6 -6 -6 -5 -5 -5 -5 -5 -4 -4 -4 -4 -4 -4 -3 -3 -2 -2 -2 -1 -------- Run | Yrd Mat Min Mat Min Mat Fac Low Low Dat Pro Fac Low Zio Pro Fac Upp Upp Zhi Pro Fac Ext Cet Arc Hub Res Qua Res Tes Sec Acc Total Allies 60 | . . . . . . . . . . . . . 4 . . . . . . 3 14 5 . 8 1 2 2 . . 21 Largest Group 10 | . . . . . . . . . . . . . 4 4 4 . . . . 3 10 10 9 8 1 2 2 . . 7 Highest-Rated Group 778 | . . . . . . . . . . . . . 158 158 155 . . . . 238 488 717 621 778 31 192 55 . . 100 Highest-Rated Ally 159 | . . . . . . . . . . . . . 40 40 40 . . . . 103 159 159 159 103 31 96 29 . . 15 Zionite Dispatches 11 | . . . . . . . . . . . . . . . . . . . . 2 2 . . 4 1 . 2 . . . Heavy 4 | . . . . . . . . . . . . . . . . . . . . 1 . . . 3 . . . . . . Hacker 1 | . . . . . . . . . . . . . . . . . . . . . . . . 1 . . . . . . Kinetic Resupply 1 | . . . . . . . . . . . . . . . . . . . . 1 . . . . . . . . . . Explosive Resupply 1 | . . . . . . . . . . . . . . . . . . . . . . . . . . . 1 . . . Defense Resupply 1 | . . . . . . . . . . . . . . . . . . . . . 1 . . . . . . . . . Heavy Resupply 1 | . . . . . . . . . . . . . . . . . . . . . . . . . 1 . . . . . Infowar Resupply 2 | . . . . . . . . . . . . . . . . . . . . . 1 . . . . . 1 . . . Total Orders 31 | . . . . . . . . . . . 6 . 2 . . . . . . 9 5 . . 3 2 . 4 . . . STAY 9 | . . . . . . . . . . . 1 . 1 . . . . . . 1 3 . . . 1 . 2 . . . DROP 6 | . . . . . . . . . . . . . . . . . . . . 1 2 . . . 1 . 2 . . . EXPLORE 12 | . . . . . . . . . . . 4 . 1 . . . . . . 5 . . . 2 . . . . . . RETURN 4 | . . . . . . . . . . . 1 . . . . . . . . 2 . . . 1 . . . . . . Ally Attacks 312 | . . . . . . . . . . . . . . 13 13 . . . . . 49 71 22 95 . 4 . . . 45 Total Damage 13233 | . . . . . . . . . . . . . . 484 568 . . . . . 2281 2776 709 5410 . 141 . . . 864 Kills 62 | . . . . . . . . . . . . . . 7 7 . . . . . 12 14 2 18 . 1 . . . 1 Allies Corrupted 2 | . . . . . . . . . . . . . . . . . . . . . . . . 2 . . . . . . Allies Melted . | . . . . . . . . . . . . . . . . . . . . . . . . . . . . . . . Intel | -11 -10 -10 -9 -9 -8 -7 -7 -7 -7 -6 -6 -6 -6 -5 -5 -5 -5 -5 -4 -4 -4 -4 -4 -4 -3 -3 -2 -2 -2 -1 ------- Run | Yrd Mat Min Mat Min Mat Fac Low Low Dat Pro Fac Low Zio Pro Fac Upp Upp Zhi Pro Fac Ext Cet Arc Hub Res Qua Res Tes Sec Acc Robot Analysis Total 8 | . 2 . 2 . . . . . . . . . . . . . . 4 . . . . . . . . . . . . Derelict Logs Recovered 8 | . . . . . . . . 1 . 1 . . 1 1 . 1 1 . 2 . . . . . . . . . . . Drone Launches 11 | . . . . . . . . . . . 4 . 1 . . . . . . 4 . . 1 1 . . . . . . Drone Recoveries 5 | . . . . . . . . . . . 2 . . . . . . . . 2 . . . 1 . . . . . . Zionite Intel Received 14 | . . . . . . . . . . . . . . . 2 . . . . 1 1 . . 1 2 3 1 . 3 . Branch Access 4 | . . . . . . . . . . . . . . . 1 . . . . 1 . . . . 1 . 1 . . . Guard Positions 1 | . . . . . . . . . . . . . . . . . . . . . . . . . . 1 . . . . Component Stockpiles 2 | . . . . . . . . . . . . . . . . . . . . . . . . . . 1 . . 1 . Prototype Schematics 1 | . . . . . . . . . . . . . . . . . . . . . . . . . . . . . 1 . Unaware Analyses 1 | . . . . . . . . . . . . . . . . . . . . . . . . . . 1 . . . . Trap Installations 3 | . . . . . . . . . . . . . . . . . . . . . 1 . . 1 1 . . . . . Active Terminals 2 | . . . . . . . . . . . . . . . 1 . . . . . . . . . . . . . 1 . Exploration | -11 -10 -10 -9 -9 -8 -7 -7 -7 -7 -6 -6 -6 -6 -5 -5 -5 -5 -5 -4 -4 -4 -4 -4 -4 -3 -3 -2 -2 -2 -1 ------------- Run | Yrd Mat Min Mat Min Mat Fac Low Low Dat Pro Fac Low Zio Pro Fac Upp Upp Zhi Pro Fac Ext Cet Arc Hub Res Qua Res Tes Sec Acc Turns Passed 19604 | 71 776 197 523 225 767 724 601 384 101 638 1671 350 949 395 948 483 549 249 485 654 793 345 136 808 458 1533 495 783 2018 495 Spaces Moved 11675 | 49 602 177 246 139 428 463 384 260 74 431 808 219 620 239 457 306 355 162 260 393 446 186 62 399 240 723 227 407 894 1019 Core 13 | 13 . . . . . . . . . . . . . . . . . . . . . . . . . . . . . . Treads 2477 | . . . . . . . . . . . . . . . . . . . . . 1 . . 307 240 723 227 407 572 . Legs 1330 | . . . . . . . . . . . . . . . . . . . . . . . . . . . . . 316 1014 Wheels 7844 | 36 602 177 246 139 428 463 384 260 74 431 808 219 620 239 457 306 355 162 260 393 445 186 62 92 . . . . . . Hover . | . . . . . . . . . . . . . . . . . . . . . . . . . . . . . . . Flight . | . . . . . . . . . . . . . . . . . . . . . . . . . . . . . . . Fastest Speed 30 | 50 80 105 110 150 110 115 120 135 135 135 140 145 145 145 130 145 145 145 131 108 123 130 160 160 160 155 155 155 30 30 Average Speed 128 | 76 97 105 114 150 128 120 140 138 135 136 142 145 145 145 139 145 145 145 141 130 139 141 160 167 160 156 155 155 116 33 Slowest Speed 560 | 90 105 110 115 150 150 125 150 150 150 140 155 145 145 145 230 160 145 145 165 185 560 160 160 170 160 160 155 155 239 90 Overloaded Moves . | . . . . . . . . . . . . . . . . . . . . . . . . . . . . . . . Propulsion Burnouts . | . . . . . . . . . . . . . . . . . . . . . . . . . . . . . . . Robots Hopped . | . . . . . . . . . . . . . . . . . . . . . . . . . . . . . . . Cave-ins Triggered . | . . . . . . . . . . . . . . . . . . . . . . . . . . . . . . . Teleports 1 | . . . . . . . . . . . . . . . . . . 1 . . . . . . . . . . . . Spacefolds 4 | . . . . . . . . . . . . . . . . . . . . . . . . . . . . . 2 2 Exploration Rate (%) 51 | 3 80 56 26 47 49 17 62 59 70 67 32 46 89 58 17 61 64 61 54 20 68 86 84 59 14 78 10 56 60 39 Regions Visited 30 Branch Regions 20 Pre-discovered Areas 9 | . 2 . . . 1 . . . 1 . . . 1 . . 1 . 3 . . . . . . . . . . . . Known Exits Taken 25 | . . . 1 . 1 1 1 1 1 1 1 1 1 1 1 1 1 1 1 1 1 1 1 1 1 1 1 1 . . Unknown Exits Taken 5 | 1 1 1 . 1 . . . . . . . . . . . . . . . . . . . . . . . . 1 . Scrap Searched 19 | . . 1 . . . . 3 1 . . . . 4 1 . 2 4 . 3 . . . . . . . . . . . Spaces Dug 203 | . 1 . 2 . 2 . . . . . 18 . . . 9 4 6 . 3 11 . . . 7 14 10 10 3 52 51 Terrain Destroyed 1721 | . 9 . 3 . 50 25 36 10 . 1 59 . . 5 93 6 7 . 62 21 8 . 2 591 19 85 26 5 252 346 Melee . | . . . . . . . . . . . . . . . . . . . . . . . . . . . . . . . Projectile 342 | . 2 . 3 . 9 3 . . . 1 28 . . . 12 6 7 . 14 16 8 . 2 16 19 38 26 3 81 48 AOE 1365 | . 7 . . . 41 22 36 10 . . 31 . . 5 81 . . . 48 5 . . . 575 . 46 . . 160 298 Terrain Rammed . | . . . . . . . . . . . . . . . . . . . . . . . . . . . . . . . Walls Destroyed . | . . . . . . . . . . . . . . . . . . . . . . . . . . . . . . . Machines Disabled . | . . . . . . . . . . . . . . . . . . . . . . . . . . . . . . . Actions | -11 -10 -10 -9 -9 -8 -7 -7 -7 -7 -6 -6 -6 -6 -5 -5 -5 -5 -5 -4 -4 -4 -4 -4 -4 -3 -3 -2 -2 -2 -1 --------- Run | Yrd Mat Min Mat Min Mat Fac Low Low Dat Pro Fac Low Zio Pro Fac Upp Upp Zhi Pro Fac Ext Cet Arc Hub Res Qua Res Tes Sec Acc Total 14445 | 68 689 185 362 147 547 567 423 273 74 456 1095 250 673 274 642 331 379 174 325 478 560 246 80 493 291 948 332 519 1443 1121 Wait 344 | . 3 . 6 . 3 3 . 1 . . 20 29 42 20 8 1 1 . 10 . 13 8 . 25 1 20 4 19 90 17 Move 11637 | 48 601 176 245 138 427 462 383 259 73 430 807 218 619 238 456 305 354 161 259 392 445 185 61 398 239 722 226 406 889 1015 Hop . | . . . . . . . . . . . . . . . . . . . . . . . . . . . . . . . Pick Up 225 | 6 12 5 10 . 14 16 6 . . . 26 1 1 . 19 3 4 1 3 9 8 7 . 6 10 17 7 6 21 7 Fast Attach 172 | 8 1 1 4 . 2 4 3 . . . 8 . 2 . 14 . 1 4 1 4 10 7 2 8 1 15 22 10 32 8 Attach 161 | . 1 . 10 2 7 3 1 . . 2 12 . 1 . 20 1 . 1 5 11 4 5 1 3 4 13 8 9 28 9 Detach 88 | 1 . . 3 . 1 1 1 . . . 3 . 1 . 10 . . . 1 6 4 2 . 2 2 8 10 8 19 5 Swap 523 | . 15 2 23 2 27 28 13 10 1 10 72 2 2 11 35 11 6 4 18 19 20 3 5 22 5 43 6 21 82 5 Drop 285 | . 8 1 4 1 16 20 5 . . 1 27 . 5 . 14 3 5 3 2 5 14 18 4 11 9 24 25 17 30 13 Fire 960 | 5 48 . 57 4 50 30 11 3 . 13 119 . . 5 66 7 8 . 26 32 23 11 7 17 20 83 24 19 233 39 Melee 1 | . . . . . . . . . . . 1 . . . . . . . . . . . . . . . . . . . Ram . | . . . . . . . . . . . . . . . . . . . . . . . . . . . . . . . Kick 5 | . . . . . . . . . . . . . . . . . . . . . . . . . . . . . 2 3 Crush 11 | . . . . . . . . . . . . . . . . . . . . . . . . 1 . 3 . 4 3 . Escape Stasis 16 | . . . . . . . . . . . . . . . . . . . . . 2 . . . . . . . 14 . Rewire 17 | . . . . . . . . . . . . . . . . . . . . . 17 . . . . . . . . . Trap . | . . . . . . . . . . . . . . . . . . . . . . . . . . . . . . . Miscellaneous . | . . . . . . . . . . . . . . . . . . . . . . . . . . . . . . . Route ------- -11/Scrapyard -10/Materials (discovered 4 exits: *Mat x2 / *Min / [Sub]) -10/Mines -9/Materials (discovered 3 exits: *Min x2 / *Sto) -9/Mines -8/Materials (discovered 2 exits: *Fac x2) -7/Factory (discovered 2 exits: *Low x2) -7/Lower Caves -7/Lower Caves -7/Data Miner -6/Proximity Caves -6/Factory (discovered 2 exits: *Low x2) -6/Lower Caves -6/Zion -5/Proximity Caves -5/Factory (discovered 2 exits: *Upp x2) -5/Upper Caves -5/Upper Caves (discovered 2 exits: *Fac / *Zhi) -5/Zhirov -4/Proximity Caves -4/Factory (discovered 5 exits: Upp x2 / *Ext x2 / Arm) -4/Extension (discovered 3 exits: *Res x2 / *Cet) -4/Cetus (discovered 2 exits: *Res / *Arc) -4/Archives (discovered 3 exits: *Res / *Hub x2) -4/Hub_04(d) (discovered 4 exits: *Res x4) -3/Research (discovered 2 exits: *Qua x2) -3/Quarantine -2/Research (discovered 2 exits: *Tes x2) -2/Testing -2/Section 7 -1/Access (discovered 2 exits: [*Sur] / [*Com]) To Fleet Rendezvous History --------- Turn | Location | Event 12 | -11/Scrapyard | Discovered new exit (range 16) 72 | -11/Scrapyard | Entered Materials 120 | -10/Materials | Discovered new exit (range 9) 320 | -10/Materials | Build established: Mutant 472 | -10/Materials | Discovered new exit (range 6) 540 | -10/Materials | Discovered new exit (range 8) 605 | -10/Materials | Discovered new exit (range 16) 683 | -10/Materials | Central database locked down 848 | -10/Materials | Entered Mines 870 | -10/Mines | Met a Derelict bent on vengeance 1017 | -10/Mines | Met a Derelict shopkeep closing up shop 1037 | -10/Mines | Discovered new exit (range 7) 1045 | -10/Mines | Entered Materials 1045 | -9/Materials | Evolved 2 slots: Propulsion x1, Utility x1 1328 | -9/Materials | Lost 5 parts (1p1n1u2w) 1450 | -9/Materials | Discovered new exit (range 14) 1457 | -9/Materials | Identified exit to Mines 1457 | -9/Materials | Identified exit to Storage 1561 | -9/Materials | Build established: Scavenger-Mutant 1568 | -9/Materials | Entered Mines 1773 | -9/Mines | Discovered new exit (range 14) 1793 | -9/Mines | Entered Materials 1793 | -8/Materials | Evolved 2 slots: Utility x2 2235 | -8/Materials | Build established: Scavenger-Skirmisher 2307 | -8/Materials | Discovered new exit (range 15) 2520 | -8/Materials | Destroyed 7 combat bots 2526 | -8/Materials | Discovered new exit (range 16) 2559 | -8/Materials | Identified exit to Factory 2560 | -8/Materials | Entered Factory 2560 | -7/Factory | Evolved 2 slots: Utility x1, Weapon x1 3036 | -7/Factory | Identified exit to Lower Caves 3284 | -7/Factory | Entered Lower Caves 3754 | -7/Lower Caves | Encountered a Warlord checkpoint 3772 | -7/Lower Caves | Discovered new exit (range 14) 3818 | -7/Lower Caves | Identified exit to Lower Caves 3831 | -7/Lower Caves | Attacked by a delusional Derelict stockpiling parts 3885 | -7/Lower Caves | Entered another Lower Caves area 4003 | -7/Lower Caves | Learned Factory terminal intel 4049 | -7/Lower Caves | Attracted the attention of an 0b10 checkpoint 4203 | -7/Lower Caves | Ambushed by wild Derelicts 4257 | -7/Lower Caves | Discovered new exit (range 7) 4267 | -7/Lower Caves | Identified exit to Data Miner 4269 | -7/Lower Caves | Entered Data Miner 4269 | -7/Data Miner | Discovered new exit (range 7) 4294 | -7/Data Miner | Met Data Miner 4320 | -7/Data Miner | Learned location of Section 7 (-2) 4320 | -7/Data Miner | Acquired the access code to Warlord's prototype stash 4339 | -7/Data Miner | Received God Mode back door access code from Data Miner 4369 | -7/Data Miner | Identified exit to Proximity Caves 4370 | -7/Data Miner | Entered Proximity Caves 4477 | -6/Proximity Caves | Learned 4 Factory zone layouts 4637 | -6/Proximity Caves | Spotted B-75 Beast 5001 | -6/Proximity Caves | Discovered new exit (range 6) 5006 | -6/Proximity Caves | Identified exit to Factory 5008 | -6/Proximity Caves | Entered Factory 5008 | -6/Factory | Evolved 2 slots: Propulsion x1, Utility x1 5010 | -6/Factory | Loaded intel: 25 terminal locations 5562 | -6/Factory | Identified exit to Lower Caves 5844 | -6/Factory | Lost 3 parts (1n1u1w) 6593 | -6/Factory | Spotted B-75 Beast 6679 | -6/Factory | Entered Lower Caves 6691 | -6/Lower Caves | Encountered a Warlord checkpoint 7014 | -6/Lower Caves | A Derelict revealed a hidden shortcut to a safe place 7027 | -6/Lower Caves | Identified exit to Zion 7029 | -6/Lower Caves | Entered Zion 7074 | -6/Zion | Given the Hacking Drone Bay 7075 | -6/Zion | Found Prototype Device 7075 | -6/Zion | Identified Hacking Drone Bay 7098 | -6/Zion | Discovered new exit (range 16) 7527 | -6/Zion | Received a visual enhancement algorithm 7578 | -6/Zion | Given A8's code to call for help 7704 | -6/Zion | Imprinted 7707 | -6/Zion | Declared Zion's savior 7935 | -6/Zion | Identified exit to Proximity Caves 7978 | -6/Zion | Entered Proximity Caves 7978 | -5/Proximity Caves | Accompanied by 4 allies 8241 | -5/Proximity Caves | Learned 4 Factory zone layouts 8343 | -5/Proximity Caves | Discovered new exit (range 11) 8356 | -5/Proximity Caves | Identified exit to Factory 8373 | -5/Proximity Caves | Entered Factory 8373 | -5/Factory | Accompanied by 4 allies 8373 | -5/Factory | Evolved 2 slots: Utility x1, Weapon x1 8608 | -5/Factory | Lost 4 allies 8673 | -5/Factory | First assault squad dispatched 8733 | -5/Factory | Lost 5 parts (2n2u1w) 8785 | -5/Factory | Destroyed 7 combat bots 8786 | -5/Factory | Lost 4 parts (1p1n1u1w) 9023 | -5/Factory | Retrieved Zion intel report: Active Terminals 9090 | -5/Factory | Retrieved Zion intel report: Branch Access 9090 | -5/Factory | Identified exit to Upper Caves 9214 | -5/Factory | Noticed a derelict Sapper rigging charges 9321 | -5/Factory | Entered Upper Caves 9331 | -5/Upper Caves | Encountered a Warlord checkpoint 9627 | -5/Upper Caves | Acquired the password to a Derelict Tinkerer's latest research 9630 | -5/Upper Caves | Learned location of Armory (-4) 9681 | -5/Upper Caves | Found Prototype Special Weapon 9783 | -5/Upper Caves | Discovered new exit (range 13) 9799 | -5/Upper Caves | Identified exit to Upper Caves 9804 | -5/Upper Caves | Entered another Upper Caves area 9852 | -5/Upper Caves | Encountered a Warlord checkpoint 9860 | -5/Upper Caves | Learned Factory terminal intel 9870 | -5/Upper Caves | Discovered new exit (range 13) 10323 | -5/Upper Caves | Discovered new exit (range 15) 10351 | -5/Upper Caves | Identified exit to Zhirov 10353 | -5/Upper Caves | Entered Zhirov 10353 | -5/Zhirov | Discovered new exit (range 3) 10356 | -5/Zhirov | Identified exit to Proximity Caves 10380 | -5/Zhirov | Met Zhirov 10412 | -5/Zhirov | Found Alien Artifact 10412 | -5/Zhirov | Identified Integrated Dissipator 10412 | -5/Zhirov | Installed Integrated Dissipator, increased core heat dissipation (+20) 10465 | -5/Zhirov | Found Alien Artifact 10465 | -5/Zhirov | Identified Transdimensional Reconstructor 10465 | -5/Zhirov | Warped through subspace 10552 | -5/Zhirov | Learned location of Quarantine (-3) 10552 | -5/Zhirov | Learned location of Testing (-2) 10552 | -5/Zhirov | Learned location of Command (-1) 10559 | -5/Zhirov | Zhirov requested help retrieving the SGEMP Prototype 10602 | -5/Zhirov | Entered Proximity Caves 10819 | -4/Proximity Caves | Learned Research stockpile data 10974 | -4/Proximity Caves | Lost 3 parts (1p2n) 11008 | -4/Proximity Caves | Identified exit to Factory 11087 | -4/Proximity Caves | Entered Factory 11087 | -4/Factory | Evolved 2 slots: Utility x2 11088 | -4/Factory | Loaded intel: 28 terminal locations 11317 | -4/Factory | Lost 5 parts (2n3w) 11575 | -4/Factory | Retrieved Zion intel report: Branch Access 11575 | -4/Factory | Identified exit to Upper Caves 11575 | -4/Factory | Identified exit to Extension 11575 | -4/Factory | Identified exit to Armory 11576 | -4/Factory | Zion Kinetic Resupply teleported in 11587 | -4/Factory | Zion Heavy squad teleported in 11741 | -4/Factory | Entered Extension 11741 | -4/Extension | Accompanied by 2 allies 11787 | -4/Extension | Rescued a captive Derelict 11787 | -4/Extension | Rescued a captive Derelict 11834 | -4/Extension | Retrieved Zion intel report: Trap Installations 11835 | -4/Extension | Zion Infowar Resupply teleported in 11850 | -4/Extension | Zion Defense Resupply teleported in 11854 | -4/Extension | Rescued a captive Derelict 11870 | -4/Extension | Found Imp. Powered Armor 11913 | -4/Extension | Identified Molecular Deconstructor 12050 | -4/Extension | Spotted B-86 Titan 12063 | -4/Extension | Allies destroyed B-86 Titan 12071 | -4/Extension | Spotted B-86 Titan 12117 | -4/Extension | Found Prototype Protection 12117 | -4/Extension | Identified Zio. Weapon Casing 12128 | -4/Extension | Lost 5 allies 12128 | -4/Extension | Destroyed B-86 Titan 12152 | -4/Extension | Lost 3 parts (2n1u) 12179 | -4/Extension | Rescued a captive Derelict 12189 | -4/Extension | Discovered new exit (range 19) 12221 | -4/Extension | Rescued a captive Derelict 12322 | -4/Extension | Rescued A7 12388 | -4/Extension | Rescued a captive Derelict 12410 | -4/Extension | Rescued a captive Derelict 12411 | -4/Extension | Rescued a captive Derelict 12515 | -4/Extension | Discovered new exit (range 10) 12516 | -4/Extension | Discovered new exit (range 6) 12523 | -4/Extension | Identified exit to Cetus 12534 | -4/Extension | Entered Cetus 12534 | -4/Cetus | Accompanied by 8 allies (A7) 12539 | -4/Cetus | Acquired a Cetus Manufacturing Module code from A7 12548 | -4/Cetus | Spotted Cetus Guard 12548 | -4/Cetus | Spotted Cetus Guard 12550 | -4/Cetus | Spotted Cetus Guard 12550 | -4/Cetus | Spotted Cetus Guard 12562 | -4/Cetus | Allies destroyed Cetus Guard 12568 | -4/Cetus | Allies destroyed Cetus Guard 12571 | -4/Cetus | Destroyed Cetus Guard 12572 | -4/Cetus | Allies destroyed Cetus Guard 12667 | -4/Cetus | Escorted A7 to Cetus Mainframe 12679 | -4/Cetus | Started Cetus Manufacturing Module 12687 | -4/Cetus | Discovered new exit (range 22) 12704 | -4/Cetus | Manufactured an Enhanced Grunt 12713 | -4/Cetus | Spotted Cetus Guard 12714 | -4/Cetus | Spotted Cetus Guard 12715 | -4/Cetus | Spotted Cetus Guard 12719 | -4/Cetus | Destroyed Cetus Guard 12724 | -4/Cetus | Allies destroyed Cetus Guard 12725 | -4/Cetus | Spotted Cetus Guard 12728 | -4/Cetus | Discovered new exit (range 22) 12729 | -4/Cetus | Manufactured an Enhanced Grunt 12736 | -4/Cetus | Allies destroyed Cetus Guard 12740 | -4/Cetus | Allies destroyed Cetus Guard 12754 | -4/Cetus | Manufactured an Enhanced Grunt 12756 | -4/Cetus | Scared off Revision 17 12779 | -4/Cetus | Manufactured an Enhanced Grunt 12804 | -4/Cetus | Manufactured an Enhanced Grunt 12811 | -4/Cetus | Cetus Manufacturing Module disabled 12833 | -4/Cetus | Build established: Scavenger-Tank 12871 | -4/Cetus | Identified exit to Archives 12879 | -4/Cetus | Entered Archives 12879 | -4/Archives | Accompanied by 9 allies (A7) 12884 | -4/Archives | Received a hacking code to weaken MAIN.C 12936 | -4/Archives | Lost 4 allies 12938 | -4/Archives | Discovered new exit (range 22) 12957 | -4/Archives | Discovered new exit (range 16) 12969 | -4/Archives | Discovered new exit (range 17) 13010 | -4/Archives | Identified exit to Hub_04(d) 13015 | -4/Archives | Entered Hub_04(d) 13015 | -4/Hub_04(d) | Accompanied by 5 allies 13022 | -4/Hub_04(d) | Discovered new exit (range 19) 13104 | -4/Hub_04(d) | Discovered new exit (range 9) 13114 | -4/Hub_04(d) | Lost 3 allies 13201 | -4/Hub_04(d) | Retrieved Zion intel report: Trap Installations 13202 | -4/Hub_04(d) | Zion Heavy squad teleported in 13219 | -4/Hub_04(d) | Zion Heavy squad teleported in 13225 | -4/Hub_04(d) | Identified exit to Research 13244 | -4/Hub_04(d) | Zion Hacker squad teleported in 13293 | -4/Hub_04(d) | Discovered exit to Research (range 7) 13357 | -4/Hub_04(d) | Spotted B-86 Titan 13372 | -4/Hub_04(d) | Allies destroyed B-86 Titan 13381 | -4/Hub_04(d) | Build established: Scavenger-Skirmisher 13430 | -4/Hub_04(d) | Discovered exit to Research (range 21) 13601 | -4/Hub_04(d) | Zion Heavy squad teleported in 13746 | -4/Hub_04(d) | Network Hub disabled 13746 | -4/Hub_04(d) | Network Hub disabled 13765 | -4/Hub_04(d) | First assault squad dispatched 13769 | -4/Hub_04(d) | Spotted Lightning 13769 | -4/Hub_04(d) | Spotted Lightning 13774 | -4/Hub_04(d) | Spotted Lightning 13806 | -4/Hub_04(d) | Network Hub disabled 13809 | -4/Hub_04(d) | Network Hub disabled 13815 | -4/Hub_04(d) | Lost 6 allies 13818 | -4/Hub_04(d) | System corruption reached 10% 13823 | -4/Hub_04(d) | Entered Research 13823 | -3/Research | Evolved 2 slots: Power x1, Propulsion x1 14003 | -3/Research | Retrieved Zion intel report: Trap Installations 14069 | -3/Research | Retrieved Zion intel report: Branch Access 14069 | -3/Research | Identified exit to Quarantine 14070 | -3/Research | Zion Heavy Resupply teleported in 14073 | -3/Research | First assault squad dispatched 14098 | -3/Research | Build established: Messiah-Skirmisher 14281 | -3/Research | Entered Quarantine 14312 | -3/Quarantine | Found Gamma Bomb Array 14404 | -3/Quarantine | Found Alien Artifact 14404 | -3/Quarantine | Identified Phase Redirector 14781 | -3/Quarantine | First assault squad dispatched 14806 | -3/Quarantine | Retrieved Zion intel report: Guard Positions 14809 | -3/Quarantine | Enhanced Grunt warped into view, answering call for help 14814 | -3/Quarantine | Enhanced Grunt warped into view, answering call for help 14877 | -3/Quarantine | Destroyed 18 combat bots 14951 | -3/Quarantine | Met incapacitated Sigix Warrior 14951 | -3/Quarantine | Lockdown squad dispatched 14954 | -3/Quarantine | Acquired the access code to the Sigix quarantine chamber 14957 | -3/Quarantine | Unlocked Sigix quarantine chamber 15015 | -3/Quarantine | Spotted Lightning 15020 | -3/Quarantine | Spotted Lightning 15021 | -3/Quarantine | Spotted Lightning 15051 | -3/Quarantine | Destroyed Lightning 15051 | -3/Quarantine | Destroyed Lightning 15090 | -3/Quarantine | Found Prototype Energy Cannon 15090 | -3/Quarantine | Identified EMDS 15099 | -3/Quarantine | Found Prototype Processor 15099 | -3/Quarantine | Identified Exp. Targeting Computer 15135 | -3/Quarantine | System corruption reached 10% 15329 | -3/Quarantine | Found Alien Artifact 15329 | -3/Quarantine | Identified Core Reset Matrix 15329 | -3/Quarantine | Used Core Reset Matrix 15333 | -3/Quarantine | Sensed 13 artifacts in vicinity 15359 | -3/Quarantine | Discovered new exit (range 22) 15427 | -3/Quarantine | Found Subatomic Replicator 15453 | -3/Quarantine | Destroyed Lightning 15565 | -3/Quarantine | Retrieved Zion intel report: Unaware Analyses 15613 | -3/Quarantine | Retrieved Zion intel report: Component Stockpiles 15631 | -3/Quarantine | Found Gamma Bomb Array 15642 | -3/Quarantine | Build established: Scavenger-Skirmisher 15684 | -3/Quarantine | Found Core Cannon 15812 | -3/Quarantine | Identified exit to Research 15814 | -3/Quarantine | Entered Research 15814 | -2/Research | Evolved 2 slots: Utility x2 16056 | -2/Research | Retrieved Zion intel report: Branch Access 16056 | -2/Research | Identified exit to Testing 16057 | -2/Research | Zion Infowar Resupply teleported in 16066 | -2/Research | Zion Explosive Resupply teleported in 16082 | -2/Research | Found Prototype Processor 16082 | -2/Research | Identified Spectral Analyzer 16089 | -2/Research | Found Prototype Launcher 16089 | -2/Research | Identified Mni. Smartbomb Launcher 16093 | -2/Research | Found Prototype Launcher 16093 | -2/Research | Identified Ragnarok Missile Launcher 16309 | -2/Research | Entered Testing 16339 | -2/Testing | Found Prototype Device 16339 | -2/Testing | Identified 2N-1CE's Frost Array 16415 | -2/Testing | Found Prototype Ballistic Gun 16415 | -2/Testing | Identified Hyp. Multirail 16619 | -2/Testing | Found Prototype Energy Cannon 16619 | -2/Testing | Identified Imp. Potential Cannon 16624 | -2/Testing | Used Subatomic Replicator to replicate Imp. Potential Cannon 16975 | -2/Testing | Spotted Fortress 17082 | -2/Testing | Discovered new exit (range 5) 17086 | -2/Testing | Identified exit to Section 7 17092 | -2/Testing | Entered Section 7 17093 | -2/Section 7 | Sensed 20 artifacts in vicinity 17099 | -2/Section 7 | Retrieved Zion intel report: Active Terminals 17105 | -2/Section 7 | Retrieved Zion intel report: Prototype Schematics 17127 | -2/Section 7 | Found Integrated Reactor 17127 | -2/Section 7 | Installed Integrated Reactor, increased core energy generation (+10) 17318 | -2/Section 7 | Retrieved Zion intel report: Component Stockpiles 17393 | -2/Section 7 | Spotted B-90 Cyclops 17524 | -2/Section 7 | Spotted S7 Guard 17562 | -2/Section 7 | Destroyed S7 Guard 17590 | -2/Section 7 | Found Integrated Thermoelectric Network 17590 | -2/Section 7 | Installed Integrated Thermoelectric Network, gained heat-energy exchange potential 17592 | -2/Section 7 | First assault squad dispatched 17686 | -2/Section 7 | Destroyed B-90 Cyclops 17707 | -2/Section 7 | Destroyed 10 combat bots 17815 | -2/Section 7 | Found Spacefold Activator 17881 | -2/Section 7 | Spotted Alpha 7 17888 | -2/Section 7 | Spotted Alpha 7 17911 | -2/Section 7 | Destroyed Alpha 7 17920 | -2/Section 7 | Destroyed Alpha 7 18059 | -2/Section 7 | Spotted B-99 Colossus 18149 | -2/Section 7 | Destroyed B-99 Colossus 18184 | -2/Section 7 | Found Core Expander 18184 | -2/Section 7 | Installed Core Expander, added new Power slot 18202 | -2/Section 7 | High security lockdown imminent 18282 | -2/Section 7 | High security lockdown engaged 18338 | -2/Section 7 | Found LRC Storage 18338 | -2/Section 7 | Installed LRC Storage, increased inventory capacity (+2) 18341 | -2/Section 7 | Found LRC Insulator 18341 | -2/Section 7 | Installed LRC Insulator, gained EM resistance (25) 18453 | -2/Section 7 | Build established: Alien-Skirmisher 18486 | -2/Section 7 | Spotted Investigator 18486 | -2/Section 7 | Scanned by Researcher 18490 | -2/Section 7 | Destroyed Investigator 18533 | -2/Section 7 | Destroyed 30 combat bots 18629 | -2/Section 7 | Spotted Executioner 18631 | -2/Section 7 | Destroyed Executioner 18688 | -2/Section 7 | Destroyed 18 combat bots 18810 | -2/Section 7 | Spotted Executioner 18841 | -2/Section 7 | Integrated with Sigix Exoskeleton 18842 | -2/Section 7 | Sigix Warrior commented on Exoskeleton integration 18849 | -2/Section 7 | Spotted Striker 18849 | -2/Section 7 | Spotted Striker 18880 | -2/Section 7 | Core integrity fell below 50% 18882 | -2/Section 7 | Spotted Striker 18882 | -2/Section 7 | Spotted Striker 18883 | -2/Section 7 | Spotted Striker 18888 | -2/Section 7 | Sigix Exoskeleton integrity reduced to 80% 18889 | -2/Section 7 | Spotted Investigator 18890 | -2/Section 7 | Spotted Striker 18890 | -2/Section 7 | Spotted Executioner 18892 | -2/Section 7 | Destroyed Striker 18892 | -2/Section 7 | Destroyed Striker 18895 | -2/Section 7 | Destroyed Executioner 18900 | -2/Section 7 | Destroyed Investigator 18905 | -2/Section 7 | Sterilization system engaged 18905 | -2/Section 7 | Non-combat units ordered to evacuate 18908 | -2/Section 7 | Destroyed Striker 18921 | -2/Section 7 | Destroyed Striker 18921 | -2/Section 7 | Destroyed Striker 18942 | -2/Section 7 | Destroyed 27 combat bots 18942 | -2/Section 7 | Destroyed Striker 19005 | -2/Section 7 | Combat units ordered to evacuate 19025 | -2/Section 7 | Found Core Expander 19025 | -2/Section 7 | Installed Core Expander, added new Power slot 19027 | -2/Section 7 | Found Core Expander 19027 | -2/Section 7 | Installed Core Expander, added new Propulsion slot 19087 | -2/Section 7 | Discovered new exit (range 18) 19092 | -2/Section 7 | Spotted S7 Guard 19098 | -2/Section 7 | Core integrity fell below 20% 19101 | -2/Section 7 | Sigix Exoskeleton integrity reduced to 60% 19106 | -2/Section 7 | Found Core Regenerator 19110 | -2/Section 7 | Entered Access 19110 | -1/Access | Evolved 2 slots: Propulsion x1, Weapon x1 19115 | -1/Access | Emitted hypermatrix ping 19120 | -1/Access | Assembled emerged from beneath the floor 19146 | -1/Access | Build established: Alien-Sigix 19270 | -1/Access | Assembled emerged from beneath the floor 19302 | -1/Access | Assembled emerged from beneath the floor 19366 | -1/Access | Discovered new exit (range 18) 19408 | -1/Access | Intercept squad dispatched 19412 | -1/Access | Spotted Tracker 19412 | -1/Access | Spotted Tracker 19418 | -1/Access | Destroyed Tracker 19418 | -1/Access | Destroyed Tracker 19428 | -1/Access | Spotted Combat Programmer 19457 | -1/Access | Spotted B-99 Colossus 19481 | -1/Access | Spotted Combat Programmer 19482 | -1/Access | Destroyed Combat Programmer 19492 | -1/Access | Spotted Striker 19513 | -1/Access | Spotted Striker 19513 | -1/Access | Spotted Executioner 19515 | -1/Access | Sigix Exoskeleton integrity reduced to 40% 19578 | -1/Access | Energy Cycler disabled 19599 | -1/Access | Discovered new exit (range 16) 19605 | *** | Heading to fleet! Last Messages --------------- 19576_ E-15 Imp destroyed. 19576_ Destroyed Unknown Flight Unit. 19578_ S-43 Plague destroyed. 19578_ ALERT: Power surge detected, dispatching additional patrols. 19578_ Energy Cycler explodes. 19578_ S-43 Plague destroyed. 19578_ Wave Collapse Detector explodes. 19578_ E-15 Imp destroyed. 19578_ Destroyed Unknown Flight Unit. 19578_ S-43 Plague destroyed. 19581_ U-05 Engineer destroyed. 19589_ Detected hypermatrix ping. 19593_ K-01 Serf destroyed. 19595_ Destroyed Unknown Flight Unit. 19595_ S-43 Plague destroyed. 19599_ EXIT=FOUND 19601_ Beam penetrates Wall. 19601_ Beam penetrates Earth. 19601_ Beam penetrates Main Access Shell. 19602_ System corrupted: Heat flow error (+106). Map ----- +----------------------------------------------------+ | ?????????????????????????????????????????????????? | | ?????????????????????????????????????????????????? | | ?????????????????????????????????????????????????? | | ????? ??????????????????????????????????????????? | | ????? ??????????????????????????????????????????? | | ????? ??????????????????????????????????????????? | | ????? ??????????????????????????????????????????? | | ????# ??????????????????????????????????????????? | | ?#### ### ?????????????????????????????????????? | | ##### ### ???????#??????????????????????????? | | # ########+?###########?##??????????????????? | | + ??????????????????? | | "" # u ?????????????????? | | """# ############## ""###???????????????? | | T"# # ##### ""####??????????????? | | """# # *##### ""#####?????????????? | | "" # + ##### T######????????????? | | # # ##### ""######????????????? | | # # ##### """######???????????? | | ##### # == ##### " ####### ??????????? | | ##### # == #### ###### ??????????? | | ##### # == ! ##### ####### ??????????? | | ##### # ##### ####### #?????????? | | ##### ############## """ "" ####### #?????????? | | ##### ############## " " ####### #?????????? | | ##### ############## " X" " ####### #?????????? | | ##### ############## "" " ####### #?????????? | | ##### ############## " " ####### ##????????? | | ##### ############## """""" #######k#?????????? | | ##### #############; ####### ?????????? | | ##### ############ #""""""""""#########?????????? | | #####* ########### ##""""""""""#########?????????? | | ###% ########## ###""""""""""#########?????????? | | # = ########"####""""""""""########??????????? | | # ##### ########??????????? | | # ##### BB BB ########??????????? | | # " = ##### BB BB #######??????????? | | # """ ##### ######??????????? | | """ ##### ######?????????? | | " ##### #####???????????+## | | ##### ####??????????? ## | | ######## ######??????????? ## | | ######## #####???????????? ## | | ### ################ ####????????????? ## | | ##### ????????????? " ## | | ##### ??????????????""" ## | | ??????????????? """## | | ???????????????? " ## | | ###########################?????????????????= ## | | ############?????????????????? ## | +----------------------------------------------------+ Best States ------------- Heat Dissipation 244 Coolant Potential 80 Energy Generation 104 Energy Capacity 1500 Matter Stores 557 Matter Capacity 600 Sight Range 24 Robot Scan Range 16 Terrain Scan Range 24 Terrain Scan Density 410 Jamming Range 16 Cloak Strength 3 Power Amplification 40 Corruption Block 15 Armor Coverage 850 Resistance: KI 50 Resistance: TH 50 Resistance: EX 50 Resistance: EM 75 Resistance: I 50 Resistance: S 50 Resistance: P 50 Propulsion Shielding 66 Utility Shielding 66 Weapon Shielding 100 Weapon Cycling 15 Evasion (%) 69 Targeting Accuracy 18 Melee Accuracy 8 Recoil Reduction 5 Energy Filtering 50 Kinecelleration 40 Offensive Hacking 10 Authchip Count 1 Item Schematics ----------------- Hvy. Dispersion Rifle | -2/Testing | Archive Cld. Plasma Rifle | -2/Testing | Archive Hvy. Wave Gun | -2/Testing | Archive Exp. Weapon Shielding | -2/Section 7 | Z-intel Ragnarok Missile Launcher | -2/Section 7 | Z-intel Centrium Heavy Treads | -2/Section 7 | Z-intel Exp. Shield Generator | -2/Section 7 | Z-intel Exp. Biometal Heavy Treads | -2/Section 7 | Z-intel Exp. Coolant Injector | -2/Section 7 | Z-intel Exp. Actuator Array | -2/Section 7 | Z-intel Electron Diverter | -2/Section 7 | Z-intel Adv. Dynamic Insulation System | -2/Section 7 | Z-intel Hvy. Neutron Cannon | -2/Section 7 | Z-intel Exp. Core Analyzer | -2/Section 7 | Z-intel Proton Burst Cannon | -2/Section 7 | Z-intel Robot Schematics ------------------ L-61 Swordsman | -2/Testing | Archive R-10 Processor | -2/Testing | Archive Fabricated ------------ Nothing Alien Tech Used ----------------- Integrated Dissipator Transdimensional Reconstructor Phase Redirector Core Reset Matrix Core Cannon Subatomic Replicator Integrated Reactor Integrated Thermoelectric Network Spacefold Activator Core Expander LRC Storage LRC Insulator Sigix Exoskeleton Sigix Sheargun Achievements -------------- None Challenges ------------ None Game ------ Seed StorageSwordSegregator Manual? 0 Play Time 05:37:37 Cumulative 1070.1 hours Start 2024.03.15 @ 21:17:22 End 2024.03.16 @ 18:44:08 Sessions 11 Manual Loads 0 Difficulty Rogue Special Mode None Game No. 533 Rogue 406 Adventurer 125 Explorer 2 Win Type 2 Total 128 Types 99/10/9/3/3/0/0/2/2 Lore% 82 Gallery% 90 Achievement% 84 Wizard Run 0 Options --------- Layout 0 ASCII 0 Keyboard 1 Movement Numpad Keybinds 0 Fullscreen 1 Font 36/Terminus++ Map View 83x50 Zoom Use 0% Tactical HUD 1 Map Filters NONE Filters NONE Steam 1 RUN: 488f7582-e197-49b7-bb2e-ca6ce0909c45